bitfinex/quotes_ETHUSD_20250326
["timestamp","ask_amount","ask_price","bid_price","bid_amount"]
[1743006878721,7.13934053,2020.9,2020.7,4.94873]
[1743006879465,7.13934053,2020.9,2020.8,14.5]
[1743006880556,7.13934053,2020.9,2020.6,4.94892]
[1743006880852,7.13934053,2020.9,2020.6,9.89783]
[1743006881071,7.13934053,2020.9,2020.7,19.44874]
[1743006881259,3.0,2020.9,2020.8,5.76133]
[1743006881555,3.0,2020.9,2020.8,0.8128]
[1743006881725,7.94837,2020.9,2020.7,14.5]
[1743006882055,4.13934053,2020.8,2020.7,14.5]
[1743006882457,4.94912,2020.6,2020.4,0.99126606]
[1743006882683,4.13934053,2020.5,2020.2,5.73837]
[1743006882852,4.13934053,2020.5,2020.3,19.302]
[1743006883929,7.94951,2020.4,2020.1,0.07]
[1743006884247,4.13934053,2020.2,2020.1,0.07]
[1743006884453,4.13934053,2020.2,2020.1,14.57]
[1743006884655,7.13934053,2020.2,2020.1,14.57]
[1743006884860,13.87181558,2020.2,2020.1,14.57]
[1743006885068,8.92181558,2020.2,2020.1,14.57]
[1743006885272,13.87181558,2020.2,2020.1,14.57]
[1743006885850,13.87181558,2020.2,2020.1,0.07]
[1743006886278,14.66261558,2020.2,2020.1,0.07]
[1743006886883,15.0399806,2020.2,2020.1,0.07]
[1743006887081,19.17932113,2020.2,2020.1,0.07]
[1743006887248,10.90064007,2020.2,2020.1,0.07]
[1743006887575,14.66261558,2020.2,2020.1,0.07]
[1743006888376,8.92181558,2020.2,2020.1,0.07]
[1743006888612,7.26310605,2020.5,2020.1,5.02016]
[1743006888777,3.0,2020.4,2020.1,5.02016]
[1743006888985,11.40244658,2020.5,2020.1,5.02016]
[1743006889207,4.13934053,2020.3,2020.2,14.5]
[1743006890563,7.13934053,2020.3,2020.2,14.5]
[1743006892404,3.0,2020.3,2020.2,14.5]
[1743006892604,28.553,2021.1,2020.4,4.94935]
[1743006892882,3.0,2020.7,2020.4,4.94935]
[1743006893047,9.08802053,2020.8,2020.4,4.94935]
[1743006893377,3.0,2020.5,2020.4,14.5]
[1743006895477,9.15825105,2020.5,2020.1,5.6607]
[1743006895650,9.08893053,2020.4,2020.1,5.6607]
[1743006896055,9.08893053,2020.4,2020.1,10.61093]
[1743006896260,4.13934053,2020.4,2020.1,10.61093]
[1743006896460,3.0,2020.3,2020.1,9.82323]
[1743006896683,3.0,2020.3,2020.1,4.873]
[1743006897290,12.08934053,2020.2,2020.1,4.873]
[1743006897478,7.13934053,2020.2,2020.1,4.873]
[1743006899184,7.13934053,2020.2,2020.1,0.07]
[1743006899373,3.0,2020.2,2020.1,0.07]
[1743006899767,7.13934053,2020.2,2020.1,0.07]
[1743006899992,12.08934053,2020.2,2020.1,0.07]
[1743006900356,7.13934053,2020.2,2020.1,0.07]
[1743006901294,3.0,2020.2,2020.1,5.02024]
[1743006901666,3.0,2020.2,2020.1,0.07]
[1743006902189,4.13934053,2020.4,2020.1,0.07]
[1743006902393,4.13934053,2020.7,2020.2,6.29937]
[1743006902590,3.0,2020.4,2020.2,6.29937]
[1743006902900,3.0,2020.4,2020.2,6.29928]
[1743006903098,3.0,2020.4,2020.2,6.29924]
[1743006903295,3.0,2020.4,2020.2,1.3494]
[1743006903664,4.13934053,2020.3,2020.1,5.02014]
[1743006904091,3.0,2020.4,2020.1,5.02014]
[1743006904296,3.0,2020.4,2020.2,9.89973]
[1743006904903,3.0,2020.4,2020.2,4.94982]
[1743006905669,3.0,2020.4,2020.2,9.89966]
[1743006905868,3.0,2020.4,2020.2,4.94982]
[1743006906068,0.817,2020.8,2020.2,4.94982]
[1743006906069,4.94838,2020.9,2020.5,4.94915]
[1743006906299,3.0,2020.8,2020.5,4.94915]
[1743006907200,4.13934053,2020.7,2020.5,4.94915]
[1743006907408,3.0,2020.8,2020.5,4.94915]
[1743006907600,3.0,2020.8,2020.6,4.94892]
[1743006907803,4.94782,2021.1,2020.8,0.7568]
[1743006907804,4.13934053,2021.1,2020.8,0.7568]
[1743006908000,14.03522053,2021.1,2020.8,0.7568]
[1743006908312,0.7698,2021.2,2020.7,0.55]
[1743006908313,7.13934053,2020.9,2020.7,0.55]
[1743006908501,12.08771053,2020.9,2020.5,9.89824]
[1743006908672,4.13934053,2020.7,2020.4,10.5034]
[1743006908879,9.08814053,2020.7,2020.5,4.803]
[1743006909608,4.13934053,2020.7,2020.5,4.803]
[1743006910078,9.08826053,2020.7,2020.3,5.96568077]
[1743006910277,4.13934053,2020.5,2020.4,4.803]
[1743006910481,7.13934053,2020.7,2020.4,4.803]
[1743006910812,7.13934053,2020.7,2020.4,9.75232]
[1743006911234,4.13934053,2020.5,2020.4,4.803]
[1743006911648,3.8122,2020.4,2020.1,0.07]
[1743006911862,12.08934053,2020.2,2020.1,0.07]
[1743006912354,7.13934053,2020.2,2020.1,0.07]
[1743006912520,8.92444358,2020.2,2020.1,0.07]
[1743006912705,13.87444358,2020.2,2020.1,0.07]
[1743006914147,8.92444358,2020.2,2020.1,0.07]
[1743006915328,13.87444358,2020.2,2020.1,0.07]
[1743006915938,4.78510305,2020.2,2020.1,0.07]
[1743006916141,3.0,2020.2,2020.1,0.07]
[1743006916655,3.0,2020.2,2020.1,5.81054]
[1743006916809,3.0,2020.3,2020.1,5.81054]
[1743006917011,3.0,2020.3,2020.1,10.76067]
[1743006917263,3.0,2020.3,2020.1,5.81043]
[1743006917911,3.0,2020.3,2020.2,4.95]
[1743006918961,3.0,2020.5,2020.3,4.94961]
[1743006919314,3.0,2020.5,2020.3,9.89924]
[1743006919515,3.0,2020.5,2020.4,4.94951]
[1743006919832,3.0,2020.5,2020.3,4.94961]
[1743006920909,3.0,2020.5,2020.2,4.95]
[1743006921417,3.0,2020.5,2020.3,4.803]
[1743006922541,3.0,2020.5,2020.3,14.70228]
[1743006922839,3.0,2020.5,2020.4,5.75721]
[1743006923062,3.0,2020.5,2020.4,6.30721]
[1743006927653,9.08791053,2020.8,2020.5,4.94923]
[1743006927850,3.0,2020.7,2020.5,4.94923]
[1743006928939,5.70343,2021.0,2020.6,5.49902]
[1743006929148,4.94786,2021.1,2020.7,4.94875]
[1743006929449,3.0,2020.9,2020.7,4.94875]
[1743006930153,3.0,2020.9,2020.7,4.94868]
[1743006930449,4.13934053,2020.9,2020.8,4.94853]
[1743006930752,4.13934053,2020.9,2020.7,5.76158]
[1743006930753,4.13934053,2020.9,2020.7,10.71021]
[1743006930954,4.13934053,2020.9,2020.7,10.71015]
[1743006931462,4.13934053,2020.9,2020.8,4.94853]
[1743006931955,4.13934053,2020.9,2020.8,5.49853]
[1743006932145,10.65069,2021.2,2020.9,4.94829]
[1743006932146,4.13934053,2021.1,2020.9,4.94829]
[1743006932352,4.13934053,2021.3,2021.0,9.89598]
[1743006932527,3.0,2021.2,2021.0,4.94788]
[1743006933990,4.13934053,2021.5,2021.2,4.94739]
[1743006934129,3.0,2021.4,2021.2,4.94739]
[1743006934328,5.54257958,2021.5,2021.2,9.89477]
[1743006934529,5.54257958,2021.5,2021.2,4.94738]
[1743006934740,3.0,2021.4,2021.2,4.94738]
[1743006934943,3.0,2021.4,2021.2,9.89482]
[1743006935342,3.0,2021.4,2021.2,4.94738]
[1743006935745,3.0,2021.4,2021.3,4.94731]
[1743006936244,4.13934053,2021.5,2021.3,5.76071]
[1743006936461,4.13934053,2021.5,2021.3,5.76054]
[1743006936759,5.7153,2021.8,2021.3,5.76054]
[1743006936760,0.7692,2021.8,2021.6,4.94647]
[1743006937067,3.0,2021.7,2021.5,4.94682]
[1743006937254,4.13934053,2021.8,2021.5,4.94682]
[1743006937573,3.0,2021.7,2021.5,4.94682]
[1743006938970,3.0,2021.7,2021.4,5.49694]
[1743006939138,4.13934053,2021.6,2021.4,0.55]
[1743006939481,7.13934053,2021.6,2021.5,14.5]
[1743006939840,12.08593053,2021.6,2021.4,0.55]
[1743006940042,7.13934053,2021.6,2021.4,0.55]
[1743006940240,7.13934053,2021.6,2021.4,15.05]
[1743006940770,7.13934053,2021.6,2021.4,19.99705]
[1743006941272,7.13934053,2021.6,2021.4,5.49705]
[1743006942081,7.13934053,2021.6,2021.4,10.44402]
[1743006942406,7.13934053,2021.6,2021.5,4.94682]
[1743006943451,7.13934053,2021.6,2021.4,5.49699]
[1743006944077,7.13934053,2021.6,2021.4,5.49691]
[1743006944773,3.0,2021.6,2021.5,5.49682]
[1743006947280,3.0,2021.6,2021.5,19.99682]
[1743006947482,7.13934053,2021.6,2021.4,0.55]
[1743006949511,7.13934053,2021.6,2021.4,5.49705]
[1743006949870,7.13934053,2021.6,2021.4,0.55]
[1743006950271,7.13934053,2021.6,2021.4,5.49705]
[1743006951866,7.13934053,2021.6,2021.4,10.44398]
[1743006952092,7.13934053,2021.6,2021.4,10.44387]
[1743006952903,7.13934053,2021.6,2021.4,5.49693]
[1743006953904,7.13934053,2021.6,2021.4,19.99693]
[1743006954100,8.84252358,2021.6,2021.3,5.76850147]
[1743006954305,4.13934053,2021.4,2021.3,11.26571147]
[1743006954505,4.13934053,2021.4,2021.3,25.76571147]
[1743006955008,4.13934053,2021.4,2021.3,20.81850147]
[1743006955306,4.13934053,2021.4,2021.3,25.76581147]
[1743006955605,4.13934053,2021.4,2021.3,20.81850147]
[1743006956322,12.90259053,2021.6,2021.3,11.26581147]
[1743006956510,3.0,2021.6,2021.4,4.94703]
[1743006956714,3.0,2021.6,2021.4,4.9469]
[1743006957009,3.0,2021.6,2021.5,4.94682]
[1743006958081,3.0,2021.6,2021.4,8.78586715]
[1743006958580,3.0,2021.6,2021.5,4.94682]
[1743006958913,3.0,2021.6,2021.5,5.49682]
[1743006960318,3.0,2021.6,2021.5,19.99682]
[1743006964340,3.0,2021.6,2021.3,5.76850147]
[1743006964341,3.8069,2021.6,2021.3,5.76850147]
[1743006964509,4.13934053,2021.5,2021.3,5.76550147]
[1743006965135,4.13934053,2021.5,2021.3,10.71264147]
[1743006965339,3.8069,2021.6,2021.4,4.94706]
[1743006965340,3.0,2021.6,2021.4,4.94706]
[1743006965537,3.0,2021.6,2021.5,4.94682]
[1743006967062,8.7632,2021.6,2021.3,0.55]
[1743006967240,9.08628053,2021.5,2021.1,4.94779]
[1743006967406,4.13934053,2021.3,2021.1,9.74679]
[1743006967820,4.13934053,2021.3,2021.0,5.73381]
[1743006967821,0.8165,2021.2,2021.0,4.799]
[1743006968024,4.13934053,2021.1,2021.0,4.799]
[1743006968220,9.08725053,2021.1,2020.8,0.98089159]
[1743006968420,9.08725053,2021.1,2020.8,19.299]
[1743006968915,9.08725053,2021.1,2020.8,24.24751]
[1743006969160,9.08725053,2021.1,2020.8,4.94851]
[1743006969446,4.13934053,2021.1,2020.9,4.94828]
[1743006969642,4.13934053,2021.1,2020.8,10.51561]
[1743006969845,4.13934053,2021.1,2020.9,4.94823]
[1743006970741,4.13934053,2021.1,2020.8,10.51561]
[1743006970947,4.13934053,2020.9,2020.8,5.349]
[1743006973843,7.13934053,2021.1,2020.8,11.12523]
[1743006974243,7.13934053,2021.1,2020.8,16.07367]
[1743006974449,7.13934053,2021.1,2020.8,11.12514]
[1743006974649,7.13934053,2021.1,2020.9,14.5]
[1743006976360,17.03512053,2021.1,2020.8,5.349]
[1743006976566,4.13934053,2020.9,2020.8,5.349]
[1743006979935,3.0,2021.1,2020.9,0.7607]
[1743006980331,3.0,2021.1,2021.0,14.5]
[1743006982472,8.72402,2021.1,2020.8,10.29745]
[1743006982677,4.13934053,2021.0,2020.8,10.29745]
[1743006982885,4.13934053,2021.0,2020.8,24.79745]
[1743006983432,3.0,2020.9,2020.7,5.71324]
[1743006983639,3.0,2020.9,2020.8,0.55]
[1743006984079,3.0,2021.0,2020.8,5.49853]
[1743006984279,0.828,2021.5,2020.8,2.92802046]
[1743006984464,5.77411,2021.8,2021.4,4.94683]
[1743006984663,4.96734053,2021.8,2021.5,4.94666]
[1743006984965,16.34561758,2021.8,2021.4,5.76155]
[1743006985178,4.13934053,2021.6,2021.4,5.76155]
[1743006985561,4.13934053,2021.6,2021.4,10.70848]
[1743006985883,4.13934053,2021.6,2021.4,5.76143]
[1743006986061,4.13934053,2021.6,2021.2,0.8145]
[1743006986260,7.94764,2021.2,2020.9,4.799]
[1743006986494,4.13934053,2021.0,2020.8,4.799]
[1743006986872,9.08755053,2021.0,2020.8,4.799]
[1743006987195,10.69764,2020.9,2020.6,4.799]
[1743006987375,7.13934053,2020.8,2020.6,4.799]
[1743006988513,7.13934053,2020.8,2020.6,9.74801]
[1743006989197,7.13934053,2020.8,2020.7,14.5]
[1743006989601,5.72742,2021.1,2020.7,20.21009]
[1743006989887,3.0,2021.1,2020.8,7.449439]
[1743006990102,3.0,2021.1,2020.7,20.21016]
[1743006990103,3.0,2020.9,2020.7,5.71009]
[1743006990618,3.0,2020.9,2020.8,14.5]
[1743006991998,3.0,2020.9,2020.8,19.44853]
[1743006993114,3.0,2020.9,2020.8,14.5]
[1743006993284,3.0,2020.9,2020.7,4.94861]
[1743006993720,4.13934053,2020.8,2020.7,5.49861]
[1743006994101,4.13934053,2020.8,2020.6,19.299]
[1743006994993,3.0,2020.8,2020.7,4.94878]
[1743006995195,3.8099,2021.1,2020.8,4.94848]
[1743006995410,3.0,2021.1,2020.8,4.94848]
[1743006995928,3.0,2020.9,2020.8,4.94848]
[1743006996429,3.0,2020.9,2020.7,4.94876]
[1743006996719,3.0,2020.9,2020.7,4.94862]
[1743006997120,3.0,2020.9,2020.7,5.349]
[1743006997121,4.13934053,2020.8,2020.7,5.349]
[1743006997516,4.13934053,2020.8,2020.7,4.799]
[1743006997917,3.0,2020.9,2020.7,4.799]
[1743006998420,3.0,2020.9,2020.7,9.74778]
[1743006998793,3.0,2020.9,2020.7,4.799]
[1743006999009,4.13934053,2020.8,2020.7,4.799]
[1743007001375,7.9483,2020.9,2020.7,4.799]
[1743007001539,5.42898853,2020.8,2020.6,19.299]
[1743007001838,3.0,2020.7,2020.6,4.799]
[1743007002925,4.94916,2020.6,2020.3,14.5]
[1743007003229,4.13934053,2020.5,2020.3,14.5]
[1743007005158,7.13934053,2020.5,2020.4,4.94951]
[1743007005328,7.13934053,2020.5,2020.3,19.44959]
[1743007005534,7.13934053,2020.5,2020.3,24.39923]
[1743007006047,0.7899,2020.9,2020.5,5.49917]
[1743007006329,3.0,2021.0,2020.7,5.70765]
[1743007006544,4.13934053,2020.9,2020.7,10.50665]
[1743007006742,4.13934053,2020.9,2020.8,14.5]
[1743007009151,4.13934053,2020.9,2020.7,9.74769]
[1743007009568,4.13934053,2020.9,2020.7,24.24769]
[1743007010067,4.13934053,2020.9,2020.7,27.299665]
[1743007010226,4.13934053,2020.9,2020.7,24.24769]
[1743007011752,4.13934053,2020.9,2020.7,9.74769]
[1743007014855,4.13934053,2020.9,2020.7,4.799]
[1743007015567,4.13934053,2020.9,2020.7,9.74769]
[1743007018665,4.13934053,2020.9,2020.7,4.799]
[1743007019541,4.13934053,2020.9,2020.7,9.74771]
[1743007020268,4.13934053,2020.9,2020.7,4.799]
[1743007020468,10.37828058,2020.9,2020.7,4.799]
[1743007020766,10.37828058,2020.9,2020.6,4.799]
[1743007020767,3.0,2020.8,2020.6,4.799]
[1743007020943,4.13934053,2020.7,2020.6,4.799]
[1743007021364,4.13934053,2020.7,2020.5,6.27237]
[1743007021365,3.0,2020.6,2020.3,5.72293]
[1743007021660,0.7637,2020.4,2020.1,5.0201]
[1743007021863,9.08912053,2020.3,2020.1,0.07]
[1743007022065,4.13934053,2020.3,2020.1,5.0202]
[1743007022262,9.89825,2020.6,2020.2,4.94979]
[1743007022466,7.13934053,2020.5,2020.2,4.94979]
[1743007022632,4.13934053,2020.3,2020.1,0.07]
[1743007022837,7.95,2020.2,2020.1,4.869]
[1743007023033,7.95,2020.2,2020.1,0.07]
[1743007030556,3.0,2020.2,2020.1,0.07]
[1743007030870,7.94977,2020.3,2020.1,0.07]
[1743007031075,12.08911053,2020.3,2020.1,0.07]
[1743007031974,17.03909053,2020.3,2020.1,0.07]
[1743007032269,13.87492958,2020.3,2020.1,0.07]
[1743007032467,4.95,2020.2,2020.1,0.07]
[1743007033546,8.7511,2020.2,2020.1,0.07]
[1743007039203,8.7686,2020.2,2020.1,0.07]
[1743007041320,12.90794053,2020.2,2020.1,0.07]
[1743007041505,16.32305467,2020.2,2020.1,0.07]
[1743007042105,12.18371414,2020.2,2020.1,0.07]
[1743007042305,16.32305467,2020.2,2020.1,1e-05]
[1743007042513,4.95172,2019.5,2019.4,0.1175455]
[1743007042819,13.07215082,2019.5,2019.4,0.1175455]
[1743007045322,3.0,2019.5,2019.4,0.1175455]
[1743007045473,3.0,2019.5,2019.4,5.8760055]
[1743007045681,3.0,2019.5,2019.4,0.9240455]
[1743007046030,12.09106053,2019.5,2019.4,0.1175455]
[1743007046194,7.13934053,2019.5,2019.4,0.1175455]
[1743007046535,8.84355258,2019.5,2019.4,0.1175455]
[1743007046842,13.79527258,2019.5,2019.4,0.1175455]
[1743007047131,3.0,2019.5,2019.4,0.1175455]
[1743007048904,3.0,2019.5,2019.4,5.0695055]
[1743007049591,9.09009053,2019.9,2019.6,4.95147]
[1743007049791,10.57731458,2019.9,2019.5,10.5355]
[1743007050047,4.13934053,2019.7,2019.5,10.5355]
[1743007050229,4.13934053,2019.7,2019.5,5.5838]
[1743007050809,4.13934053,2019.7,2019.5,10.53549]
[1743007051104,3.0,2019.8,2019.5,10.53536]
[1743007051321,3.0,2019.8,2019.6,4.95138]
[1743007052193,3.0,2019.8,2019.5,10.53536]
[1743007052615,3.0,2019.8,2019.5,15.48689]
[1743007052812,4.13934053,2019.7,2019.5,5.5838]
[1743007053021,7.951,2019.8,2019.5,5.5838]
[1743007053326,12.09034053,2019.8,2019.5,6.59661141]
[1743007053529,7.951,2019.8,2019.5,11.54831141]
[1743007053821,3.0,2019.8,2019.5,11.54831141]
[1743007054414,3.0,2020.0,2019.7,4.95123]
[1743007054629,4.74051987,2020.0,2019.8,0.7566]
[1743007055123,4.95001,2020.2,2019.8,0.7566]
[1743007055438,4.13934053,2020.3,2020.0,4.95046]
[1743007055637,3.0,2020.2,2020.1,0.7775]
[1743007055991,9.08919053,2020.3,2020.1,0.7775]
[1743007056195,1.40389005,2020.2,2020.1,0.7775]
[1743007056500,4.40389005,2020.2,2020.1,0.7775]
[1743007057498,3.0,2020.2,2020.1,0.7775]
[1743007057698,3.0,2020.2,2020.1,5.72774]
[1743007057898,9.08873053,2020.5,2020.1,5.72774]
[1743007058208,14.03819053,2020.5,2020.1,5.72774]
[1743007058416,1.40381905,2020.4,2020.1,5.72774]
[1743007058723,4.40381905,2020.4,2020.1,5.72774]
[1743007059130,3.0,2020.4,2020.2,4.94999]
[1743007059746,4.94906,2020.6,2020.3,4.94966]
[1743007060094,4.94906,2020.6,2020.2,4.94985]
[1743007060294,3.0,2020.5,2020.2,4.94985]
[1743007060813,9.85231053,2020.5,2020.1,5.72772]
[1743007061013,0.98523105,2020.4,2020.2,4.799]
[1743007061638,5.93483105,2020.4,2020.2,4.799]
[1743007061836,5.93483105,2020.4,2020.1,0.7775]
[1743007061837,4.95039,2020.1,2019.8,0.7965]
[1743007062065,4.13934053,2020.0,2019.8,0.7965]
[1743007062956,4.13934053,2020.0,2019.6,9.75046]
[1743007063150,4.95102,2019.8,2019.6,5.5955]
[1743007063345,9.09036053,2019.8,2019.5,4.95164]
[1743007063556,3.0,2019.7,2019.5,4.799]
[1743007065464,7.95135,2019.7,2019.5,4.799]
[1743007066777,3.0,2019.7,2019.5,4.799]
[1743007066967,7.95123,2019.7,2019.5,4.799]
[1743007067379,3.0,2019.7,2019.5,4.799]
[1743007067538,3.0,2019.5,2019.4,0.1175455]
[1743007067745,9.06,2019.5,2019.4,0.1175455]
[1743007069266,9.06,2019.5,2019.4,1.09702153]
[1743007069452,9.06,2019.5,2019.4,0.1175455]
[1743007069944,14.78162,2019.5,2019.4,0.1175455]
[1743007070279,17.66399005,2019.5,2019.4,0.1175455]
[1743007070971,21.80333058,2019.5,2019.4,0.1175455]
[1743007071878,22.17762751,2019.5,2019.4,0.1175455]
[1743007075394,26.31696804,2019.5,2019.4,0.1175455]
[1743007075576,22.17762751,2019.5,2019.4,0.1175455]
[1743007075886,26.31696804,2019.5,2019.4,0.1175455]
[1743007077191,3.7523,2018.8,2018.3,4.95459]
[1743007077399,4.13934053,2018.5,2018.3,9.90914]
[1743007077562,4.13934053,2018.5,2018.2,5.6097]
[1743007077563,9.09360053,2018.5,2018.2,5.76452]
[1743007077763,4.13934053,2018.3,2018.2,5.76452]
[1743007080698,4.13934053,2018.3,2018.2,1.77960447]
[1743007081576,7.13934053,2018.3,2018.2,1.77960447]
[1743007083406,7.13934053,2018.3,2018.2,21.23451447]
[1743007083703,7.13934053,2018.3,2018.2,16.27960447]
[1743007084075,3.0,2018.3,2018.2,20.26461]
[1743007084278,7.13934053,2018.3,2018.2,20.26461]
[1743007084706,14.97900518,2018.3,2018.2,14.5]
[1743007084899,7.95491,2018.2,2018.1,0.07]
[1743007085179,12.84775053,2018.2,2018.1,0.07]
[1743007085580,7.95638,2017.6,2017.4,0.1175455]
[1743007085887,4.13934053,2017.5,2017.4,0.1175455]
[1743007086185,9.09596053,2017.5,2017.4,0.1175455]
[1743007086386,18.03841503,2017.5,2017.4,0.1175455]
[1743007086591,20.63789453,2017.5,2017.4,0.1175455]
[1743007087015,15.68127453,2017.5,2017.4,0.1175455]
[1743007087325,13.08179503,2017.5,2017.4,0.1175455]
[1743007088298,18.03841503,2017.5,2017.4,0.1175455]
[1743007088494,14.7166745,2017.5,2017.4,0.1175455]
[1743007088697,14.7166745,2017.5,2017.4,0.4175455]
[1743007089019,18.00747606,2017.5,2017.4,0.4175455]
[1743007092934,22.81047606,2017.5,2017.4,0.4175455]
[1743007093433,3.0,2016.7,2016.3,5.78026]
[1743007093637,8.524909,2016.7,2016.4,4.95924]
[1743007093935,8.524909,2016.7,2016.5,19.459]
[1743007094105,3.0,2016.5,2016.2,4.95961]
[1743007094305,3.0,2016.5,2016.4,0.8209]
[1743007095130,3.0,2016.5,2016.4,5.78023]
[1743007095349,4.08189068,2016.5,2016.3,15.47559763]
[1743007095513,4.08189068,2016.5,2016.3,14.5]
[1743007095514,3.0,2016.5,2016.3,14.5]
[1743007095705,3.0,2016.5,2016.3,19.45952]
[1743007096514,3.0,2016.6,2016.3,19.45952]
[1743007096723,7.13934053,2016.6,2016.3,19.45952]
[1743007097144,7.13934053,2016.6,2016.4,0.7789]
[1743007097344,7.13934053,2016.6,2016.4,5.73823]
[1743007097509,7.13934053,2016.6,2016.4,0.7789]
[1743007097713,7.13934053,2016.6,2016.4,5.73823]
[1743007098347,3.0,2016.6,2016.4,5.73823]
[1743007098537,3.0,2016.6,2016.4,0.7789]
[1743007098947,3.0,2016.6,2016.5,14.5]
[1743007099329,3.0,2016.6,2016.5,19.45908]
[1743007099840,4.13934053,2016.8,2016.5,19.45903]
[1743007100146,3.0,2016.7,2016.5,19.45899]
[1743007100460,3.0,2016.7,2016.6,4.95884]
[1743007100657,5.524909,2017.0,2016.7,5.71186]
[1743007100861,5.524909,2017.0,2016.8,4.95824]
[1743007101235,5.524909,2017.0,2016.9,14.5]
[1743007101564,8.524909,2017.0,2016.9,14.5]
[1743007101942,3.0,2016.9,2016.7,10.67031]
[1743007102465,3.0,2016.9,2016.8,14.5]
[1743007102666,3.0,2016.9,2016.8,19.45834]
[1743007102963,3.0,2016.9,2016.8,4.95834]
[1743007104168,5.524909,2017.0,2016.9,4.9581]
[1743007104746,3.0,2017.2,2017.0,4.95785]
[1743007105064,3.0,2017.2,2017.1,0.809]
[1743007106363,5.524909,2017.4,2017.1,5.76661]
[1743007106546,5.524909,2017.4,2017.1,5.7665]
[1743007107045,3.0,2017.3,2017.1,0.809]
[1743007107242,14.62112953,2017.4,2017.0,14.5]
[1743007107444,3.0,2017.3,2017.0,19.45784]
[1743007108372,3.0,2017.3,2017.0,4.95784]
[1743007108666,5.25777895,2017.3,2016.9,5.6125]
[1743007108969,4.95753,2017.2,2016.9,5.6125]
[1743007109534,4.95753,2017.2,2016.9,0.8075]
[1743007109535,4.95769,2017.1,2016.9,0.8075]
[1743007109739,4.95769,2017.1,2016.7,11.60158335]
[1743007109965,6.46913095,2017.1,2016.7,11.60158335]
[1743007110147,6.46913095,2017.1,2016.7,26.10158335]
[1743007110356,11.42692095,2017.1,2016.7,26.10158335]
[1743007110671,6.46913095,2017.1,2016.7,26.10158335]
[1743007110970,4.95769,2017.1,2016.7,26.10158335]
[1743007111172,4.95769,2017.1,2016.7,21.29658335]
[1743007111344,3.0,2017.0,2016.7,21.29648335]
[1743007112058,3.0,2017.0,2016.7,26.25491335]
[1743007112261,5.524909,2017.0,2016.1,0.07]
[1743007112456,5.524909,2017.0,2016.7,4.95854]
[1743007112457,3.0,2016.9,2016.7,4.95854]
[1743007113871,3.0,2016.9,2016.7,5.94111254]
[1743007114064,3.0,2016.9,2016.7,0.98257254]
[1743007115368,3.0,2016.9,2016.7,5.94098254]
[1743007115670,3.0,2016.9,2016.8,4.95834]
[1743007116968,3.0,2016.9,2016.7,25.24598254]
[1743007117179,3.0,2016.9,2016.7,30.20443254]
[1743007117468,0.8255,2017.3,2016.7,30.20443254]
[1743007117469,11.01611,2017.8,2016.7,26.50468582]
[1743007117657,4.95762,2017.1,2016.7,24.26358]
[1743007117968,4.95752,2017.2,2016.8,0.7671]
[1743007118573,9.09648053,2017.3,2016.8,0.7671]
[1743007119165,14.05377053,2017.3,2016.8,0.7671]
[1743007119561,3.0,2017.2,2016.8,5.7254]
[1743007119764,3.0,2017.2,2016.8,8.28335]
[1743007119933,5.32137057,2017.6,2017.0,5.73481]
[1743007120139,3.0,2017.5,2017.1,4.95753]
[1743007120570,7.95664,2017.5,2017.0,5.73481]
[1743007120784,3.0,2017.3,2017.0,0.7772]
[1743007121706,3.0,2017.3,2017.0,15.2772]
[1743007121893,3.0,2017.3,2017.1,0.98362446]
[1743007122092,3.0,2017.3,2017.2,4.805]
[1743007123303,12.91351,2017.5,2017.2,4.805]
[1743007123509,7.9567,2017.5,2017.2,4.805]
[1743007124081,12.91355,2017.5,2017.2,4.805]
[1743007124283,3.0,2017.3,2017.2,4.805]
[1743007125099,7.95666,2017.5,2017.2,4.805]
[1743007125902,3.0,2017.5,2017.2,9.76235]
[1743007126272,3.0,2017.5,2017.2,4.805]
[1743007126472,7.95664,2017.5,2017.2,4.805]
[1743007128109,3.0,2017.5,2017.2,4.805]
[1743007128309,3.0,2017.3,2017.2,4.805]
[1743007129779,3.0,2017.4,2017.2,4.805]
[1743007130210,0.006936,2017.3,2017.2,4.805]
[1743007130435,0.006936,2017.3,2017.2,9.76236]
[1743007130584,0.006936,2017.3,2017.2,11.06526]
[1743007130785,0.006936,2017.3,2017.2,12.76921633]
[1743007131387,0.006936,2017.3,2017.2,18.88921633]
[1743007131811,0.006936,2017.3,2017.2,33.38921633]
[1743007135387,6e-06,2017.3,2017.2,33.38921633]
[1743007135593,5.1531,2018.4,2018.0,5.71738]
[1743007135838,9.07972815,2018.5,2018.1,4.95512]
[1743007136140,9.07961815,2018.5,2018.0,10.52131]
[1743007136291,10.00743997,2018.5,2018.0,10.52131]
[1743007136491,10.00747997,2018.5,2018.0,10.52131]
[1743007136717,3.0,2018.4,2018.0,10.52131]
[1743007137818,8.1536,2018.2,2018.0,4.804]
[1743007138017,9.71903036,2018.2,2018.0,4.804]
[1743007138217,8.1536,2018.2,2018.0,4.804]
[1743007138658,3.1986,2018.2,2018.0,4.804]
[1743007139759,3.0,2018.2,2018.0,4.804]
[1743007141232,3.0,2018.2,2017.8,5.9254764]
[1743007141431,3.0,2018.2,2017.9,4.803]
[1743007141432,12.91007,2018.2,2017.9,4.803]
[1743007141654,14.67100736,2018.2,2017.9,4.803]
[1743007141872,4.95517,2018.1,2017.9,4.803]